[Event "79th LOTTO Polish-ch 2022"]
[Site "Kruszwica"]
[Date "2022.05.11"]
[Round "2.1"]
[White "Warakomski, Tomasz"]
[Black "Gumularz, Szymon"]
[Result "1/2-1/2"]
[ECO "C50"]
[WhiteElo "2534"]
[BlackElo "2513"]
[Annotator "TA"]
[PlyCount "51"]
[EventDate "2022.05.10"]
[EventType "k.o."]
[EventCountry "POL"]
[SourceTitle "playchess.com"]
[Source "ChessBase"]
[SourceQuality "1"]
[TimeControl "40/5400+30:1800+30"]

{[%evp 10,51,20,14,18,11,12,22,16,0,15,15,15,0,10,0,2,0,22,17,8,10,7,16,5,5,9,8,5,4,10,14,8,0,0,0,0,-9,0,0,0,-23,0,0]} 1. e4 {[%emt 0:00:03]} e5 {[%emt 0:00:07]} 2. Nf3 {[%emt 0:00:08]} Nc6 {[%emt 0:00:06]} 3. Bc4 {[%emt 0:00:17]} Bc5 {[%emt 0:00:11]} 4. O-O {[%emt 0:00:50]} Nf6 {[%emt 0:00:08]} 5. d3 {[%emt 0:00:04]} d6 {[%emt 0:00:10]} 6. c3 {[%emt 0:00:05]} a5 $1 {[%emt 0:00:30][%mdl 4] 6...a5 is the modern continuation. C54: Giuoco Piano: 4 c3 Nf6, main lines with 5 d4 and 5 d3.} 7. Re1 {[%emt 0:00:22]} O-O {[%emt 0:00:45]} 8. h3 {[%emt 0:00:22]} h6 {[%emt 0:00:29]} 9. Nbd2 {[%emt 0:00:07][%cal Bb1d2,Bd2f1,Bf1g3][%mdl 32]} Be6 {[%emt 0:00:46]} 10. Bb5 {[%emt 0:00:08]} Nd7 {[%emt 0:05:42]} 11. Nf1 {[%emt 0:06:46]} f5 {[%emt 0:03:20]} 12. exf5 {[%emt 0:06:28]} Bxf5 {[%emt 0:00:14]} (12... Rxf5 $2 13. d4 $18) 13. d4 {[%emt 0:00:05]} Bb6 {[%emt 0:09:34]} 14. Ng3 {[%emt 0:19:34]} Bg6 {[%emt 0:01:48]} (14... Be6 $2 15. d5 $18) 15. Be3 {[%emt 0:01:14]} exd4 {[%emt 0:02:42]} 16. Nxd4 {[%emt 0:00:26]} Nxd4 {[%emt 0:00:31]} 17. Bxd4 {[%emt 0:00:57]} Bxd4 {[%emt 0:00:42]} 18. Qxd4 {[%emt 0:00:38] [#] Strongly threatening Qg4.} Ne5 {[%emt 0:05:15] Against Qg4} 19. f4 {[%emt 0:04:24] Prevents Qg5.} Nc6 {[%emt 0:03:44]} 20. Bxc6 {[%emt 0:03:55]} bxc6 {[%emt 0:00:12] [#]} 21. Re6 $146 {[%emt 0:00:34]} ({Predecessor:} 21. Qc4+ Kh8 22. f5 Bxf5 23. Nxf5 Rxf5 24. Qxc6 Rc5 25. Qf3 Qf8 26. Qd3 Re8 27. a4 Rce5 28. Rxe5 Rxe5 29. Rf1 Qe8 30. b4 Re3 {½-½ (30) Petrov,M (2453)-Efimov,Y (2454) ICCF email 2018}) 21... c5 {[%emt 0:06:02]} 22. Qe3 {[%emt 0:00:33]} Rf6 {[%emt 0:30:39]} 23. Re7 {[%emt 0:28:00]} Rf7 {[%emt 0:00:38]} 24. Re6 {[%emt 0:00:51]} Rf6 {[%emt 0:00:13]} 25. Re7 {[%emt 0:01:34]} Rf7 {[%emt 0:00:06]} (25... Rxf4 $5 26. Rxg7+ Kxg7 27. Qxf4 Qg5 $11) 26. Re6 {[%emt 0:00:03] A balanced but interesting game.  Weighted Error Value: White=0.03 (flawless) /Black=0.02 (flawless)} 1/2-1/2

[Event "79th LOTTO Polish-ch 2022"]
[Site "Kruszwica"]
[Date "2022.05.11"]
[Round "2.1"]
[White "Janik, Igor"]
[Black "Szpar, Milosz"]
[Result "1/2-1/2"]
[ECO "A28"]
[WhiteElo "2525"]
[BlackElo "2434"]
[Annotator "TA"]
[PlyCount "64"]
[EventDate "2022.05.10"]
[EventType "k.o."]
[EventCountry "POL"]
[SourceTitle "playchess.com"]
[Source "ChessBase"]
[SourceQuality "1"]
[TimeControl "40/5400+30:1800+30"]

{[%evp 11,64,14,18,0,0,0,0,0,0,0,0,-2,0,-14,8,1,0,0,0,0,0,-2,0,-31,0,0,0,0,0,0,0,0,0,0,0,0,0,0,0,0,0,0,0,0,0,0,0,0,0,0,0,0,0,0,0]} 1. c4 {[%emt 0:00:01]} e5 {[%emt 0:00:18]} 2. Nc3 {[%emt 0:00:06]} Nf6 {[%emt 0:00:09]} 3. Nf3 {[%emt 0:00:06]} Nc6 {[%emt 0:00:09]} 4. e3 {[%emt 0:00:05]} Bb4 {[%emt 0:00:53]} 5. Qc2 {[%emt 0:00:05]} Bxc3 {[%emt 0:00:48]} 6. Qxc3 {[%emt 0:00:08]} Qe7 {[%emt 0:00:29]} 7. d4 $1 {[%emt 0:00:06][%mdl 4] aiming for d5. is currently scoring better than 7.a3. A28: English Opening: Four Knights Variation.} Ne4 {[%emt 0:03:15]} 8. Qd3 {[%emt 0:00:26]} exd4 {[%emt 0:00:57]} 9. Nxd4 {[%emt 0:00:08]} O-O {[%emt 0:01:47]} 10. Be2 {[%emt 0:00:04]} Qb4+ {[%emt 0:00:44]} 11. Kf1 {[%emt 0:00:06]} Qe7 {[%emt 0:00:35]} 12. f3 {[%emt 0:00:30]} f5 {[%emt 0:02:11][%cal Oe7h4] [#] Threatens to win with ...Qh4!} 13. Qd1 {[%emt 0:03:01]} Nc5 {[%emt 0:03:20]} 14. Qd2 {[%emt 0:08:57]} a5 {[#] Inhibits b4.} 15. Nxc6 $146 {[%emt 0:18:14]} ({Predecessor:} 15. Kf2 Ne5 16. Rf1 b6 17. Kg1 Bb7 18. Qc2 Qg5 19. Rf2 Qg6 20. b3 Rf7 21. Bb2 {½-½ (44) Tsenkov,L (2374)-Celestini,M (2350) ICCF email 2019}) 15... dxc6 {[%emt 0:10:39]} 16. b3 {[%emt 0:01:08]} b6 {[%emt 0:03:11][%cal Of5f4]} 17. Qc3 {[%emt 0:05:20]} Bb7 {[%emt 0:09:44]} 18. Kf2 {[%emt 0:01:32] The position is equal.} Rf6 {[%emt 0:15:34]} 19. Rd1 {[%emt 0:14:20]} Re8 {[%emt 0:09:30]} 20. Kg1 {[%emt 0:06:12]} Rh6 {[%emt 0:02:35]} 21. Bf1 {[%emt 0:05:11][%cal Oe3e4]} Qh4 {[%emt 0:03:38] Inhibits e4.} 22. h3 {[%emt 0:00:03]} Qg3 {[%emt 0:08:41] [#] ...Rxh3 is the strong threat.} 23. Bb2 {[%emt 0:01:29]} Rhe6 {[%emt 0:01:19]} 24. Qe1 {[%emt 0:03:06]} Qxe1 {[%emt 0:05:21]} 25. Rxe1 {[%emt 0:00:04]} Rxe3 {[%emt 0:00:08]} 26. Rxe3 {[%emt 0:00:13]} Rxe3 {[%emt 0:00:04]} 27. Bd4 {[%emt 0:00:47]} Re8 {[%emt 0:01:20]} 28. Bxc5 {[%emt 0:00:10]} bxc5 {[%emt 0:00:06]} 29. Rd1 {[%emt 0:00:19]} Kf7 {[%emt 0:01:37]} 30. Rd7+ {[%emt 0:02:56]} Re7 {[%emt 0:00:06]} 31. Rxe7+ {[%emt 0:00:03]} Kxe7 {[%emt 0:00:06]} 32. f4 {[%emt 0:00:01]} Bc8 {[%emt 0:01:10] A balanced but interesting game.  Weighted Error Value: White=0.03 (flawless) /Black=0.02 (flawless)} 1/2-1/2

[Event "79th LOTTO Polish-ch 2022"]
[Site "Kruszwica"]
[Date "2022.05.11"]
[Round "2.1"]
[White "Kosakowski, Jakub"]
[Black "Nasuta, Grzegorz"]
[Result "1-0"]
[ECO "B92"]
[WhiteElo "2435"]
[BlackElo "2511"]
[Annotator "TA"]
[PlyCount "75"]
[EventDate "2022.05.10"]
[EventType "k.o."]
[EventCountry "POL"]
[SourceTitle "playchess.com"]
[Source "ChessBase"]
[SourceQuality "1"]
[TimeControl "40/5400+30:1800+30"]

{[%evp 17,75,7,4,-5,0,0,0,-22,-28,-20,35,35,31,35,33,20,53,45,43,42,43,48,44,23,38,46,44,41,31,31,83,39,19,10,39,0,51,4,56,29,24,0,4,0,0,0,0,21,927,937,908,920,29992,29993,29993,29994,29994,29995,29995,29996]} 1. e4 {[%emt 0:00:15]} c5 {[%emt 0:00:05]} 2. Nf3 {[%emt 0:00:29]} d6 {[%emt 0:00:06]} 3. d4 {[%emt 0:00:32]} cxd4 {[%emt 0:00:07]} 4. Nxd4 {[%emt 0:00:30]} Nf6 {[%emt 0:00:08]} 5. Nc3 {[%emt 0:00:09]} a6 {[%emt 0:00:09]} 6. Be2 {[%emt 0:02:07]} e5 {[%emt 0:00:30]} 7. Nb3 {[%emt 0:00:24]} Be7 {[%emt 0:00:06]} 8. O-O {[%emt 0:00:57]} O-O {[%emt 0:00:27]} 9. Qd3 {[%emt 0:02:07]} Be6 {[%emt 0:04:44]} 10. Bd2 {[%emt 0:00:51] B92: Sicilian Najdorf: 6 Be2.} Qc7 {[%emt 0:07:22] [#]} 11. a4 $146 {[%emt 0:06:44]} ({Predecessor:} 11. Nd5 Bxd5 12. exd5 a5 13. a4 b6 14. Be3 Na6 15. c3 Qb7 16. Rfd1 Nc7 17. Bf3 Nd7 {0-1 (51) Bellahcene,B (2508)-Mammadzada,G (2470) Gibraltar 2022}) 11... Nbd7 {[%emt 0:05:37]} 12. Nd5 {[%emt 0:02:11] The position is equal.} Bxd5 {[%emt 0:07:43]} 13. exd5 {[%emt 0:00:12]} Rfc8 {[%emt 0:05:48]} (13... e4 $11 14. Qh3 (14. Qc4 Qxc4 15. Bxc4 Ne5 $15) 14... Nxd5) 14. c4 $14 {[%emt 0:06:38]} a5 {[%emt 0:01:31]} 15. Rac1 {[%emt 0:07:34][%cal Ba1c1,Bc1c3,Bc3h3][%mdl 32]} Re8 {[%emt 0:04:42]} 16. Qh3 {[%emt 0:04:43]} Bf8 {[%emt 0:14:35]} 17. g4 {[%emt 0:10:02]} g6 {[%emt 0:15:41]} 18. Qg2 {[%emt 0:04:59] Inhibits Ne4.} Nc5 {[%emt 0:10:38]} 19. Nxc5 {[%emt 0:01:36]} Qxc5 {[%emt 0:00:19]} 20. Rc3 {[%emt 0:22:03]} Nd7 {[%emt 0:01:27]} 21. Rh3 {[%emt 0:06:37]} Bg7 {[%emt 0:01:04]} 22. Qg3 {[%emt 0:01:10]} e4 {[%emt 0:07:02]} 23. b3 {[%emt 0:00:15]} b6 {[%emt 0:00:30]} (23... Bd4 $14) 24. Qh4 {[%emt 0:02:45]} Nf8 {[%emt 0:00:06]} 25. Kg2 {[%emt 0:00:55]} Ra7 {[%emt 0:00:49]} 26. Bg5 {[%emt 0:02:39]} Rb7 {[%emt 0:01:14]} (26... Bd4 $11) 27. Bd1 {[%emt 0:01:02]} (27. Bc1 $14) 27... Qd4 {[%emt 0:01:22]} ({Black should try} 27... Bd4 $11) 28. Be3 {[%emt 0:02:34]} (28. Qg3 $5 {[%cal Rg3d6]}) 28... Qb2 {[%emt 0:02:40]} 29. Re1 {[%emt 0:02:15]} Bd4 {[%emt 0:04:18]} 30. Re2 {[%emt 0:05:58]} Qa1 {[%emt 0:00:10] Strongly threatening ...Bxe3.} 31. Ra2 {[%emt 0:01:33]} Qxa2 {[%emt 0:03:08]} ({Much less strong is} 31... Qxd1 32. Rd2 Bf6 33. Qxf6 (33. Rxd1 Bxh4 34. Rxh4 f6 $14) 33... Qxg4+ 34. Rg3 $14) 32. Bxd4 {[%emt 0:00:05] Hoping for Qf6.} Qd2 $2 {[%emt 0:00:04][%mdl 8192] [#] This costs Black the game.} (32... e3 $11) 33. Qf6 $1 $18 {[%emt 0:00:29][%csl Gd4][%cal Rf6g7]} Re5 {[%emt 0:00:05] [#]} (33... Qxd4 34. Qxd4) 34. Be3 $1 {[%emt 0:00:20]} Qxd1 {[%emt 0:02:40]} (34... Re6 35. dxe6) 35. Bh6 {[%emt 0:00:06][%csl Gh6][%cal Rf6g7] White mates.} Qxg4+ {[%emt 0:00:20]} 36. Rg3 {[%emt 0:00:05][%csl Gh6][%cal Rf6g7]} Qf3+ {[%emt 0:00:21]} 37. Rxf3 {[%emt 0:00:05]} exf3+ {[%emt 0:00:04]} 38. Kf1 {[%emt 0:00:06] Weighted Error Value: White=0.10 (very precise) /Black=0.40} 1-0

[Event "79th LOTTO Polish-ch 2022"]
[Site "Kruszwica"]
[Date "2022.05.11"]
[Round "2.1"]
[White "Sabuk, Piotr"]
[Black "Licznerski, Lukasz"]
[Result "1/2-1/2"]
[ECO "D10"]
[WhiteElo "2420"]
[BlackElo "2439"]
[Annotator "TA"]
[PlyCount "174"]
[EventDate "2022.05.10"]
[EventType "k.o."]
[EventCountry "POL"]
[SourceTitle "playchess.com"]
[Source "ChessBase"]
[SourceQuality "1"]
[TimeControl "40/5400+30:1800+30"]

{[%evp 9,174,18,31,26,31,36,35,10,18,14,11,11,15,9,23,0,12,0,4,-9,-10,-18,-8,-43,-13,-123,-110,-104,-102,-141,-133,-134,-119,-160,-160,-156,-132,-133,-119,-108,-108,-102,-106,-112,-85,-91,-85,-91,-93,-84,-89,-89,-4,-4,-4,-4,-4,-5,0,-19,-12,-6,0,-90,-90,-90,-90,-90,-39,-39,-39,-38,-18,-59,-59,-59,-5,-59,-12,-59,-59,-59,-59,-59,-59,-59,-59,-59,-59,-59,-59,-59,-59,-59,-59,-59,0,-59,-59,-59,-59,-59,-43,-43,-43,-43,-43,-43,-43,-43,-43,-43,-43,-43,-43,-43,-43,-43,-43,-43,-43,-43,0,-18,-18,-42,-42,-42,0,0,0,0,0,0,0,0,0,0,0,0,0,0,0,0,0,0,0,0,0,0,0,0,0,0,0,0,0,0,0,0,0,0,0,0,0,0,0]} 1. d4 {[%emt 0:00:03]} d5 {[%emt 0:00:33]} 2. c4 {[%emt 0:00:07]} c6 {[%emt 0:00:02]} 3. cxd5 {[%emt 0:02:57]} cxd5 {[%emt 0:00:10]} 4. Bf4 {[%emt 0:00:38]} Nc6 {[%emt 0:02:21]} 5. e3 {[%emt 0:00:52]} e6 {[%emt 0:04:36]} 6. Nc3 {[%emt 0:01:03] D10: Slav Defence: 3 cxd5 (without early Nf3) and 3 Nc3.} Bd6 $1 {[%emt 0:00:32] The main line 6...Bd6 scores better than 6...Nf6.} 7. Bxd6 {[%emt 0:03:01]} Qxd6 {[%emt 0:00:10]} 8. f4 {[%emt 0:00:20] White is slightly better.} Nge7 {[%emt 0:16:30]} 9. Nf3 {[%emt 0:03:45]} f6 {[%emt 0:04:35]} 10. Bd3 {[%emt 0:02:21]} Bd7 {[%emt 0:06:00][%cal Bc8d7,Bd7e8,Be8g6][%mdl 32]} 11. O-O {[%emt 0:02:20]} O-O {[%emt 0:00:06]} 12. Qe1 {[%emt 0:12:50] [#]} Rac8 $146 {[%emt 0:16:42]} ({Predecessor:} 12... Be8 13. Qh4 Bg6 14. Bxg6 Nxg6 15. Qh5 Rac8 16. Rae1 Na5 17. f5 exf5 18. Qxf5 Ne7 {1-0 (34) Studer,N (2581)-Kamsky,G (2658) Biel 2021}) 13. Rd1 {[%emt 0:26:59]} Be8 {[%emt 0:01:30]} 14. Kh1 {[%emt 0:08:32]} Bg6 {[%emt 0:01:25]} 15. e4 {[%emt 0:04:17]} dxe4 {[%emt 0:29:11]} 16. Bxe4 {[%emt 0:00:11]} Nd5 {[%emt 0:04:36]} 17. f5 {[%emt 0:03:30]} (17. Nxd5 $11 exd5 18. Bxg6 hxg6 19. Nh4) 17... Nxc3 $17 {[%emt 0:03:24]} (17... Bxf5 $6 18. Nxd5 Bxe4 19. Nxf6+ Rxf6 20. Qxe4 $11) 18. bxc3 {[%emt 0:06:26]} exf5 {[%emt 0:00:02]} 19. Bd3 {[%emt 0:00:41]} Rfe8 {[%emt 0:00:24]} 20. Qd2 {[%emt 0:01:09]} f4 {[%emt 0:02:17]} 21. Bb5 {[%emt 0:00:59]} a6 {[%emt 0:00:51]} 22. Ba4 {[%emt 0:00:18]} Bf7 {[%emt 0:02:40]} 23. Nh4 {[%emt 0:05:11]} b5 {[%emt 0:00:35]} 24. Nf5 {[%emt 0:00:28]} Qc7 {[%emt 0:00:44]} 25. Bb3 {[%emt 0:02:54]} Ne7 {[%emt 0:00:50]} 26. Nxe7+ {[%emt 0:01:14]} Rxe7 {[%emt 0:00:05]} 27. d5 {[%emt 0:00:55] d6 is the strong threat.} Qxc3 {[%emt 0:02:00]} 28. Qxf4 {[%emt 0:00:34] And now Rc1 would win.} Rd8 {[%emt 0:00:06]} 29. Rc1 {[%emt 0:02:04]} Qe5 {[%emt 0:00:13]} 30. Qb4 {[%emt 0:00:05]} ({But not} 30. d6 $2 Qxf4 31. dxe7 Qxf1+ $3 {[%mdl 512]} 32. Rxf1 Re8 $19) 30... Rc7 {[%emt 0:01:43]} (30... Bxd5 $2 31. Rce1 Qxe1 32. Rxe1 Rxe1+ 33. Qxe1 Bxb3 34. axb3 $18) ({Black should try} 30... Qd6 $17 31. Qxd6 Rxd6 32. Rc8+ Re8) 31. Qa5 $11 {[%emt 0:01:25][%csl LRa6,LRc7]} Rcd7 {[%emt 0:00:11]} 32. Qxa6 {[%emt 0:03:38]} Bxd5 {[%emt 0:00:04]} 33. Qxb5 {[%emt 0:01:52]} h5 {[%emt 0:00:30]} 34. Rfe1 {[%emt 0:01:35]} Qg5 {[%emt 0:00:27][%csl Gd5][%cal Rg5g2]} 35. Bxd5+ {[%emt 0:00:36]} Rxd5 {[%emt 0:00:01]} 36. Re8+ {[%emt 0:01:18] [#]} (36. Qb3 $11 {remains equal.}) 36... Kf7 $1 $17 {[%emt 0:01:00]} 37. Rc7+ {[%emt 0:00:38]} Kg6 {[%emt 0:00:01]} 38. Qb1+ {[%emt 0:00:25]} Kh6 {[%emt 0:00:27]} ({Black should play} 38... Qf5 $17 39. Qxf5+ Rxf5) 39. Rxd8 $15 Rxd8 {[%emt 0:00:03][%mdl 4096] Endgame KQR-KQR} 40. Rc2 {[%emt 0:00:00]} Qg4 {[%emt 0:00:00] ( -> ...Rd1+)} 41. Rc1 {[%emt 0:05:19] Against Rd1+} Rd2 {[%emt 0:03:24][%csl Gd2][%cal Rg4g2]} 42. Rg1 {[%emt 0:00:15]} Qd4 {[%emt 0:03:03]} (42... Qc4 $15 43. a3 Ra2 44. Qc1+ Qxc1 45. Rxc1 Rxa3) 43. h3 {[%emt 0:02:33]} (43. Qc1 $1 $11 Qd5 44. a4) 43... Qd5 {[%emt 0:05:13]} (43... Qc4 $1 $15) 44. Qb3 {[%emt 0:06:04]} (44. Qc1 $11) 44... Qxb3 {[%emt 0:00:31]} 45. axb3 {[%emt 0:00:01] KR-KR} Rb2 {[%emt 0:00:01] Prevents Rb1.} 46. Rc1 {[%emt 0:01:46]} Rxb3 {[%emt 0:00:03]} 47. h4 {[%emt 0:01:00]} Rb4 {[%emt 0:01:38]} 48. g3 {[%emt 0:00:21]} Rb2 {[%emt 0:00:01]} 49. Rc5 {[%emt 0:01:05]} Kg6 {[%emt 0:00:11]} 50. Kg1 {[%emt 0:00:47]} Re2 {[%emt 0:00:02]} 51. Ra5 {[%emt 0:00:45]} Re5 {[%emt 0:00:19]} 52. Ra7 {[%emt 0:00:41]} Re2 {[%emt 0:00:01]} 53. Ra5 $1 {[%emt 0:00:58]} Re7 {[%emt 0:00:11]} 54. Kf2 {[%emt 0:00:35]} Kh6 {[%emt 0:00:02]} 55. Kf3 {[%emt 0:00:58]} g6 {[%emt 0:00:01]} 56. Ra6 {[%emt 0:01:22]} Kg7 {[%emt 0:00:02]} 57. Rb6 {[%emt 0:00:28]} Kf7 {[%emt 0:00:01]} 58. Ra6 {[%emt 0:00:41]} Rd7 {[%emt 0:00:02]} 59. Rb6 {[%emt 0:00:34]} Ke7 {[%emt 0:00:01]} 60. Ra6 {[%emt 0:04:35]} Rd6 {[%emt 0:00:25]} 61. Ra4 {[%emt 0:00:46]} Rc6 {[%emt 0:00:41]} 62. Kf4 {[%emt 0:01:20]} Ke6 {[%emt 0:01:02]} 63. Re4+ {[%emt 0:00:36]} Kd5 {[%emt 0:00:22] aiming for ...Rc4.} 64. Re8 {[%emt 0:00:17]} Rc4+ {[%emt 0:00:06]} 65. Kf3 {[%emt 0:00:12]} Rg4 {[%emt 0:02:44]} 66. Re7 {[%emt 0:00:37]} f5 {[%emt 0:01:47]} 67. Rg7 {[%emt 0:01:25]} Ke6 {[%emt 0:01:06]} 68. Rg8 {[%emt 0:00:36]} f4 {[%emt 0:03:21]} 69. gxf4 {[%emt 0:00:39] The position is equal.} Kf7 {[%emt 0:00:02]} 70. Ra8 {[%emt 0:00:57]} Rxh4 {[%emt 0:00:15]} 71. Ra7+ {[%emt 0:00:23]} Kf6 {[%emt 0:00:04]} 72. Ra6+ {[%emt 0:00:43]} Kg7 {[%emt 0:00:03]} 73. Ra7+ {[%emt 0:00:33]} Kh6 {[%emt 0:00:10]} 74. Ra6 {[%emt 0:00:27]} Kg7 {[%emt 0:01:00]} 75. Ra7+ {[%emt 0:00:24]} Kf6 {[%emt 0:00:03]} 76. Ra6+ {[%emt 0:00:16]} Kf7 {[%emt 0:00:02]} (76... Kf5 $5 77. Ra5+ Kf6 $11) 77. Ra7+ {[%emt 0:00:08]} Ke8 {[%emt 0:00:03]} 78. Ra8+ {[%emt 0:00:55]} Kd7 {[%emt 0:00:56]} 79. Ra7+ {[%emt 0:00:06]} Kd8 {[%emt 0:00:14]} 80. Ra8+ {[%emt 0:00:06]} Kc7 {[%emt 0:00:14]} 81. Ra7+ {[%emt 0:00:29]} Kb6 {[%emt 0:02:07]} 82. Rh7 {[%emt 0:01:03]} Kc5 {[%emt 0:01:24]} 83. Rh6 {[%emt 0:01:19]} Rg4 {[%emt 0:00:15]} 84. f5 {[%emt 0:00:24]} gxf5 {[%emt 0:00:20]} 85. Rxh5 {[%emt 0:00:08]} Rd4 {[%emt 0:00:01]} 86. Rxf5+ {[%emt 0:00:09]} Rd5 {[%emt 0:00:01]} 87. Rxd5+ {[%emt 0:00:07]} Kxd5 {[%emt 0:00:01] White happily takes the draw.  Weighted Error Value: White=0.13 (very precise) /Black=0.11 (very precise)} 1/2-1/2

[Event "79th LOTTO Polish-ch 2022"]
[Site "Kruszwica"]
[Date "2022.05.12"]
[Round "2.2"]
[White "Wojtaszek, Radoslaw"]
[Black "Gajewski, Grzegorz"]
[Result "1-0"]
[ECO "E11"]
[WhiteElo "2696"]
[BlackElo "2589"]
[Annotator "TA"]
[PlyCount "61"]
[EventDate "2022.05.10"]
[EventType "k.o."]
[EventCountry "POL"]
[SourceTitle "playchess.com"]
[Source "ChessBase"]
[SourceQuality "1"]
[TimeControl "40/5400+30:1800+30"]

{[%evp 9,61,0,24,12,20,0,19,6,19,0,0,0,0,0,5,10,8,0,0,0,0,11,1,0,22,19,16,27,29,10,11,5,39,1,40,32,68,65,106,112,117,127,132,79,71,77,106,123,114,114,317,317,288,268]} 1. d4 {[%emt 0:00:02]} Nf6 {[%emt 0:00:08]} 2. c4 {[%emt 0:00:03]} e6 {[%emt 0:00:07]} 3. Nf3 {[%emt 0:00:04]} Bb4+ {[%emt 0:00:07]} 4. Bd2 {[%emt 0:00:06]} Be7 {[%emt 0:00:07]} 5. g3 {[%emt 0:00:21]} a6 {[%emt 0:00:06]} 6. Bg2 {[%emt 0:08:02] E11: Bogo-Indian.} b5 {[%emt 0:00:37] [#]} 7. Qb3 $146 {[%emt 0:00:08]} ({Predecessor:} 7. b3 Bb7 8. O-O O-O 9. Nc3 Ne4 10. Ne5 Nxc3 11. Bxc3 Bxg2 12. Kxg2 f5 13. Qd3 {1-0 (37) Rozum,I (2586)-Morozevich,A (2665) Sochi 2017}) 7... Nc6 {[%emt 0:06:57]} 8. O-O {[%emt 0:02:23] The position is equal.} Rb8 {[%emt 0:01:44]} 9. c5 {[%emt 0:03:21]} (9. Re1 $5 {[%cal Rc4b5]}) 9... d6 {[%emt 0:04:25]} 10. cxd6 {[%emt 0:03:44]} cxd6 {[%emt 0:00:08]} 11. Rc1 {[%emt 0:00:05]} Bb7 {[%emt 0:00:22]} 12. a4 {[%emt 0:09:38]} b4 {[%emt 0:03:20]} 13. Qd3 {[%emt 0:00:11]} O-O {[%emt 0:06:43]} 14. Bg5 {[%emt 0:05:34]} e5 {[%emt 0:10:19]} 15. Bxf6 {[%emt 0:07:06]} Bxf6 {[%emt 0:00:06]} 16. Nbd2 {[%emt 0:00:38]} d5 {[%emt 0:03:35] ...e4 is the strong threat.} 17. dxe5 {[%emt 0:03:27]} Nxe5 {[%emt 0:00:32]} 18. Nxe5 {[%emt 0:00:10]} Bxe5 {[%emt 0:00:02]} 19. Rab1 {[%emt 0:08:49]} Qf6 {[%emt 0:03:12]} 20. Qb3 {[%emt 0:02:32]} a5 {[%emt 0:17:52]} 21. Nf3 {[%emt 0:00:43]} (21. e3 $5 {[%cal Rc1c5]}) 21... Bd6 {[%emt 0:06:56]} 22. e3 {[%emt 0:00:39]} Rbc8 {[%emt 0:03:04]} 23. Nd4 {[%emt 0:00:32]} Qe5 {[%emt 0:00:08]} 24. Qd3 {[%emt 0:02:21]} Qe8 {[%emt 0:06:31]} 25. Rxc8 {[%emt 0:07:55]} Qxc8 {[%emt 0:02:05]} 26. Nf5 {[%emt 0:01:39]} ({Better is} 26. Nb3) 26... Rd8 $16 {[%emt 0:05:09]} 27. Bxd5 {[%emt 0:05:04][%cal Bg2d5,Bd5f7,Bf7b3][%mdl 32]} Ba6 {[%emt 0:04:17] [#]} 28. Qe4 $40 {[%emt 0:00:06][%mdl 128] White has strong attack.} Bf8 {[%emt 0:00:03] Strongly threatening ...Qc5.} 29. Nd4 {[%emt 0:00:32] 0x0.00288dfd33ecdp-1022s more active pieces.} Qc5 $2 {[%emt 0:01:31] [#]} (29... Qd7 $16) 30. Bxf7+ $1 $18 {[%emt 0:00:46][%mdl 512]} Kh8 {[%emt 0:00:02]} 31. Bb3 {[%emt 0:04:08] Weighted Error Value: White=0.08 (flawless) /Black=0.21 (precise)} 1-0

[Event "79th LOTTO Polish-ch 2022"]
[Site "Kruszwica"]
[Date "2022.05.12"]
[Round "2.2"]
[White "Piorun, Kacper"]
[Black "Teclaf, Pawel"]
[Result "1/2-1/2"]
[ECO "D27"]
[WhiteElo "2635"]
[BlackElo "2537"]
[Annotator "TA"]
[PlyCount "69"]
[EventDate "2022.05.10"]
[EventType "k.o."]
[EventCountry "POL"]
[SourceTitle "playchess.com"]
[Source "ChessBase"]
[SourceQuality "1"]
[TimeControl "40/5400+30:1800+30"]

{[%evp 12,69,33,6,30,30,30,16,22,25,33,33,22,39,26,38,39,8,22,5,20,0,0,0,12,0,0,0,0,0,0,0,0,0,0,0,10,7,12,16,16,3,20,0,0,0,0,0,0,0,0,0,0,0,1,0,0,0,0,0]} 1. d4 {[%emt 0:00:04]} d5 {[%emt 0:00:04]} 2. c4 {[%emt 0:00:08]} dxc4 {[%emt 0:00:18]} 3. e3 {[%emt 0:00:07]} e6 {[%emt 0:00:13]} 4. Bxc4 {[%emt 0:00:10]} Nf6 {[%emt 0:00:04]} 5. Nf3 {[%emt 0:00:06]} c5 {[%emt 0:00:04]} 6. O-O {[%emt 0:00:47]} a6 {[%emt 0:00:29]} 7. Nbd2 {[%emt 0:00:23]} Nc6 {[%emt 0:04:12][%cal Rc5d4] D27: Queen's Gambit Accepted: Classical main line: 7 e4!? and 7 a4.} 8. dxc5 {[%emt 0:02:11]} Bxc5 {[%emt 0:00:37]} 9. b3 {[%emt 0:00:09]} b5 {[%emt 0:19:09]} 10. Be2 {[%emt 0:00:14]} Bb7 {[%emt 0:00:04]} 11. Bb2 {[%emt 0:00:12]} O-O {[%emt 0:00:53] [#]} 12. a4 $146 {[%emt 0:00:17]} ({Predecessor:} 12. Qc2 Be7 13. Rad1 Qa5 14. a3 Rac8 15. Qb1 b4 16. Nc4 Qc5 17. axb4 Nxb4 18. Bd4 {0-1 (38) Ibragimov,I (2575)-Prasad,D (2445) Linares 1996}) 12... Qb6 {[%emt 0:08:37]} 13. Qb1 {[%emt 0:02:09]} Be7 {[%emt 0:16:56]} 14. axb5 {[%emt 0:37:32]} (14. Ne4 {is more complex.} Nxe4 15. Qxe4 bxa4 16. Qg4) 14... axb5 {[%emt 0:00:07] The position is equal.} 15. Qd3 {[%emt 0:00:02]} Ba6 {[%emt 0:08:46]} 16. Rfc1 {[%emt 0:15:33]} Rfd8 {[%emt 0:06:22]} 17. Qb1 {[%emt 0:00:13]} Bb7 {[%emt 0:04:35]} 18. Nd4 {[%emt 0:09:32]} Bc5 {[%emt 0:04:44][%cal Rc6d4]} 19. N2f3 {[%emt 0:09:44]} Nxd4 {[%emt 0:03:27]} 20. Bxd4 {[%emt 0:01:25]} Bxd4 {[%emt 0:00:46]} 21. Rxa8 {[%emt 0:01:34]} Bxa8 {[%emt 0:01:11]} 22. Nxd4 {[%emt 0:00:07]} b4 {[%emt 0:00:31]} 23. Qc2 {[%emt 0:01:37]} Nd5 {[%emt 0:02:29][%cal Bf6d5,Bd5c3,Bc3e2][%mdl 32]} 24. Qc5 {[%emt 0:06:59]} Qxc5 {[%emt 0:03:33]} 25. Rxc5 {[%emt 0:00:02]} Nc3 {[%emt 0:00:36]} 26. Bf3 {[%emt 0:03:08]} h6 {[%emt 0:04:03]} 27. h3 {[%emt 0:02:07]} Bxf3 {[%emt 0:04:23]} 28. gxf3 $11 {[%emt 0:00:08][%mdl 4096] Endgame KRN-KRN} Ra8 {[%emt 0:00:27]} 29. Nc2 {[%emt 0:01:26]} Ne2+ {[%emt 0:00:42]} 30. Kg2 {[%emt 0:03:24]} Nc1 {[%emt 0:00:40]} 31. Nxb4 {[%emt 0:00:46]} Nxb3 {[%emt 0:00:06]} 32. Rc3 {[%emt 0:00:10]} Na5 {[%emt 0:00:52]} 33. Nd3 {[%emt 0:00:36]} Rd8 {[%emt 0:01:35]} 34. Ne5 {[%emt 0:00:35]} f6 {[%emt 0:01:01]} 35. Nc6 {[%emt 0:01:28] Weighted Error Value: White=0.05 (flawless) /Black=0.03 (flawless)} 1/2-1/2